Cogmind - Beta 15 *** ADVENTURER MODE // 2025.06.15 @ 11:58:07 Player: KYUANTUM Result: Self-destructed Performance ------------- Evolutions (0) 0 Regions Visited (3) 600 Robots Destroyed (10) 50 Value Destroyed (425) 425 Prototype IDs (0) 0 Alien Tech Used (0) 0 Bonus (903) 903 TOTAL SCORE: 1978 Bonus ------- Follower Combat Kills 103 Registered with UFD 300 Met Optimus in HQ 500 Cogmind --------- Core Integrity 96/250 Matter 280/300 Energy 160/160 System Corruption 0% Temperature Cool (16) Movement Treading (140) Location -9/Scraptown Parts ------- > --- POWER (1) -------- Light Nuclear Core > --- PROPULSION (2) --- Overtuned Treads Overtuned Treads > --- UTILITY (2) ------ Scrap Suit > --- WEAPON (2) ------- Overtuned Pulse Rifle Barrage Gun > --- INVENTORY (5) ---- Light Deuterium Engine Improved Heat Sink Humpback Multitool Peak State ------------ > --- POWER ------------ Light Deuterium Engine > --- PROPULSION ------- Overtuned Titanium Leg Overtuned Titanium Leg > --- UTILITY ---------- Scrap Suit > --- WEAPON ----------- Barrage Gun Ripteeth > --- INVENTORY -------- Improved Heat Sink Humpback Multitool Botcube [Rating: 25] Favorites ----------- Power Light Nuclear Core Engine Light Deuterium Engine Power Core Light Nuclear Core Propulsion Light Treads Treads Light Treads Leg Overtuned Titanium Leg Utility Improved Heat Sink Device Improved Heat Sink Storage Small Storage Unit Weapon Medium Laser Energy Gun Medium Laser Ballistic Gun Barrage Gun Slashing Weapon Ripteeth Build | -11 -10 -10 -9 ------- Run | Yrd Mat Sub Scr Slots Evolved . | . . . . Power . | . . . . Propulsion . | . . . . Utility . | . . . . Weapon . | . . . . Parts Attached 22 | 4 . 7 11 Power 4 | 1 . 2 1 Engine 3 | 1 . 1 1 Core 1 | . . 1 . Reactor . | . . . . Propulsion 8 | 2 . . 6 Treads 5 | 2 . . 3 Leg 3 | . . . 3 Wheel . | . . . . Hover . | . . . . Flight . | . . . . Utility 6 | 1 . 2 3 Device 4 | . . 2 2 Storage 2 | 1 . . 1 Processor . | . . . . Hackware . | . . . . Protection . | . . . . Artifact . | . . . . Weapon 4 | . . 3 1 Energy Gun 2 | . . 1 1 Energy Cannon . | . . . . Ballistic Gun 2 | . . 2 . Ballistic Cannon . | . . . . Launcher . | . . . . Special Weapon . | . . . . Impact Weapon . | . . . . Slashing Weapon . | . . . . Piercing Weapon . | . . . . Special Melee Weapon . | . . . . Unidentified Prototypes . | . . . . Parts Lost 5 | . . 2 3 Power 1 | . . 1 . Propulsion 1 | . . . 1 Utility . | . . . . Weapon 3 | . . 1 2 Highest Loss Streak 2 | . . 1 2 To Critical Strikes . | . . . . Average Backups 3 | 1 2 3 3 Power . | . . . . Propulsion . | . . . . Utility 1 | . . 1 1 Weapon . | 1 2 . 1 Tool/Special . | . . . . Unused Backups 2 | 1 . . 1 Power . | . . . . Propulsion 1 | 1 . . . Utility . | . . . . Weapon . | . . . . Tool/Special 1 | . . . 1 Average Slot Usage (%) 76 | . 57 91 72 Engine 2 | . 14 5 1 Core 10 | . . 7 12 Treads 24 | . 28 28 24 Leg 2 | . . . 3 Device 24 | . . 22 25 Energy Gun 3 | . . 12 . Ballistic Gun 4 | . . 10 2 Slashing Weapon 1 | . . . 1 Peak Build Rating 25 | 4 4 14 25 Average Rating 11 | 3 4 10 12 On Entrance 5 | . 4 4 14 Naked Turns . | . . . . Heaviest Build 15 | 8 8 15 15 Greatest Support 40 | 40 40 40 40 Greatest Overweight (x) . | . . . . Average Overweight (x) . | . . . . Largest Inventory Capacity 35 | 8 8 8 35 Average Capacity 5 | 7 8 5 5 Most Carried 6 | 5 2 6 5 Average Carried 4 | 1 2 4 4 Final Capacity 8 | 8 8 5 5 Final Carried 5 | 2 2 5 5 Class Distribution -------------------- 85% | Mutant 12% | Scavenger-Scrapper Dominant Class ---------------- Mutant | -10/Materials Mutant | -10/Subcaves Mutant | -9/Scraptown Resources | -11 -10 -10 -9 ----------- Run | Yrd Mat Sub Scr Matter Collected 612 | 240 . 104 268 Remotely . | . . . . Salvage Created 624 | . . . 624 Parts 33 | . . . 33 Haulers Intercepted . | . . . . Recyclers Shooed . | . . . . Parts Field Recycled . | . . . . Retrieved Matter . | . . . . Parts Self-Destructed 13 | . . 5 8 Prevented . | . . . . Kills | -11 -10 -10 -9 ------- Run | Yrd Mat Sub Scr Combat Hostiles Destroyed 10 | . . . 10 Guns 10 | . . . 10 Classes Destroyed 4 | . . . 4 Bolteater 1 | . . . 1 Federalist 1 | . . . 1 Guru 1 | . . . 1 Scrapper 7 | . . . 7 Best Kill Streak 2 | . . . 2 Combat Bots Only 2 | . . . 2 Max Kills in Single Turn 1 | . . . 1 Gunslinging . | . . . . Exploded . | . . . . Melee . | . . . . Uniques/NPCs Destroyed . | . . . . Combat | -11 -10 -10 -9 -------- Run | Yrd Mat Sub Scr Hostile Shots Fired 122 | . . 27 95 Missed 30 | . . 5 25 Hits 92 | . . 22 70 Melee 10 | . . . 10 Projectile 82 | . . 22 60 Critical Strikes 3 | . . . 3 Damage Taken 1263 | . . 384 879 Core 154 | . . 35 119 Absorbed by Shields . | . . . . Ignored by Resistances 361 | . . 108 253 Regen/Repaired (Parts) 30 | . . . 30 Core Remaining (%) 100 | 100 . . . Volleys Fired 57 | . . 19 38 Largest 2 | . . 2 2 Hottest 108 | . . 70 108 Shots Fired 83 | . . 37 46 Gun 83 | . . 37 46 Cannon . | . . . . Launcher . | . . . . Special . | . . . . Kinetic 56 | . . 18 38 Thermal 25 | . . 19 6 Explosive . | . . . . Electromagnetic 2 | . . . 2 Robot Hit Streak 15 | . . 13 15 Robot Miss Streak 1 | . . 1 1 Penetration Max . | . . . . Secondary Targets . | . . . . Shots Hit Robots 72 | . . 34 38 Core Hits 21 | . . 2 19 Critical Kills . | . . . . Critical Parts Destroyed 1 | . . . 1 Critical Strikes 2 | . . 1 1 Burn 1 | . . 1 . Destroy 1 | . . . 1 Melee Attacks . | . . . . Impact . | . . . . Slashing . | . . . . Piercing . | . . . . Sneak Attacks . | . . . . Combat Hostiles . | . . . . Follow-up Attacks . | . . . . Damage Inflicted 814 | . . 157 657 Guns 814 | . . 157 657 Cannons . | . . . . Explosions . | . . . . Melee . | . . . . Ramming . | . . . . Kinetic 584 | . . 57 527 Thermal 204 | . . 100 104 Explosive . | . . . . Electromagnetic 26 | . . . 26 Impact . | . . . . Slashing . | . . . . Piercing . | . . . . Highest Corruption . | . . . . Average Corruption . | . . . . Corruption Purged . | . . . . Corruption Blocked . | . . . . Overload Shots . | . . . . Overflow Damage . | . . . . Projectiles . | . . . . Explosions . | . . . . Melee . | . . . . Knockbacks . | . . . . Impact . | . . . . Kinetic . | . . . . Secondary . | . . . . Self-Inflicted Damage . | . . . . Shots . | . . . . Rammed . | . . . . Targets Rammed . | . . . . Kicked . | . . . . Crushed . | . . . . Highest Temperature 464 | . . . 464 Average Temperature 105 | . . . 105 Received Heat Transfer 567 | . . 18 549 Effects 5 | . . . 5 Interference 3 | . . . 3 Short Circuit 1 | . . . 1 Damage (minor) 1 | . . . 1 Siege Activations . | . . . . Martial Activations . | . . . . Shielding Activations . | . . . . Robots Disrupted . | . . . . Combat Hostiles . | . . . . Robots Corrupted . | . . . . Combat Hostiles . | . . . . Parts Fried 1 | . . . 1 Impact Corruptions . | . . . . Robots Melted . | . . . . Combat Hostiles . | . . . . Parts Melted 2 | . . . 2 Heat Transferred 581 | . . 370 211 Parts Sabotaged . | . . . . Parts Stolen . | . . . . Parts Stripped . | . . . . Power Chain Reactions . | . . . . Alert | -11 -10 -10 -9 ------- Run | Yrd Mat Sub Scr Maximum Alert Level . | . . . . Low Security (%) 100 | 100 100 . . Level 1 . | . . . . Level 2 . | . . . . Level 3 . | . . . . Level 4 . | . . . . Level 5 . | . . . . High Security . | . . . . Max Security . | . . . . Peak Influence . | . . . . Initial . | . . . . Average . | . . . . Influence Increases . | . . . . Influence Decreases . | . . . . Squads Dispatched . | . . . . Investigation . | . . . . Extermination . | . . . . Reinforcement . | . . . . Assault . | . . . . Garrison . | . . . . Intercept . | . . . . Searches Triggered . | . . . . Construction Impeded . | . . . . Haulers Reinforced . | . . . . Active Scanning Responses . | . . . . Cargo Convoy Interrupts . | . . . . Stealth | -11 -10 -10 -9 --------- Run | Yrd Mat Sub Scr Distress Signals . | . . . . Communications Jammed . | . . . . Distress Signals . | . . . . Times Spotted 35 | . . 7 28 Peak Tracking Total 10 | . . 2 10 Tactical Retreats 1 | . . . 1 Traps | -11 -10 -10 -9 ------- Run | Yrd Mat Sub Scr Traps Triggered . | . . . . Indirectly . | . . . . Trap Hack Attempts . | . . . . Triggered . | . . . . Disarmed . | . . . . Reprogrammed . | . . . . Reused . | . . . . Traps Extracted . | . . . . Installed . | . . . . Triggered . | . . . . Machines | -11 -10 -10 -9 ---------- Run | Yrd Mat Sub Scr Machines Disabled 1 | . . . 1 Max in Single Turn 1 | . . . 1 Machines Repaired . | . . . . Machines Dismantled . | . . . . Machines Sabotaged . | . . . . Overloaded Fab Kills . | . . . . Hacking | -11 -10 -10 -9 --------- Run | Yrd Mat Sub Scr Machines Accessed 6 | . . . 6 Terminals . | . . . . Fabricators . | . . . . Repair Stations . | . . . . Recycling Units . | . . . . Scanalyzers . | . . . . Garrison Access . | . . . . Total Hacks 47 | . . . 47 Successful 47 | . . . 47 Failed . | . . . . Catastrophic . | . . . . Database Lockouts . | . . . . Manual . | . . . . Terminals . | . . . . Fabricators . | . . . . Repair Stations . | . . . . Recycling Units . | . . . . Scanalyzers . | . . . . Garrison Access . | . . . . Terminal Hacks 47 | . . . 47 Record 47 | . . . 47 Fabricator Hacks . | . . . . Repair Station Hacks . | . . . . Recycling Unit Hacks . | . . . . Scanalyzer . | . . . . Garrison Access Hacks . | . . . . Unauthorized Hacks . | . . . . Terminals . | . . . . Fabricators . | . . . . Repair Stations . | . . . . Recycling Units . | . . . . Scanalyzers . | . . . . Garrison Access . | . . . . Data Cores Recovered . | . . . . Used . | . . . . Hacking Detections . | . . . . Full Trace Events . | . . . . Feedback Events . | . . . . Feedback Blocked . | . . . . Robot Schematics Acquired . | . . . . Robots Built . | . . . . Authchips . | . . . . Time . | . . . . Total Robot Build Rating . | . . . . Part Schematics Acquired . | . . . . Parts Built . | . . . . Authchips . | . . . . Time . | . . . . Total Part Build Rating . | . . . . Parts Repaired . | . . . . Time . | . . . . Parts Recycled . | . . . . Recycled Matter . | . . . . Retrieved Matter . | . . . . Retrieved Components . | . . . . Parts Scanalyzed . | . . . . Part Schematics Acquired . | . . . . Parts Damaged . | . . . . Bothacking | -11 -10 -10 -9 ------------ Run | Yrd Mat Sub Scr Used RIF Installer . | . . . . Robots Hacked . | . . . . Non-combat . | . . . . Combat . | . . . . Robot Hacks Applied . | . . . . Relay Couplers Released . | . . . . Fabnet Peak Effective % . | . . . . Robots Rewired . | . . . . Allies Hacked . | . . . . Hacks Repelled . | . . . . Allies | -11 -10 -10 -9 -------- Run | Yrd Mat Sub Scr Total Allies 1 | . . . 1 Largest Group 1 | . . . 1 Highest-Rated Group 64 | . . . 64 Highest-Rated Ally 64 | . . . 64 Total Orders . | . . . . Ally Attacks 14 | . . . 14 Total Damage 569 | . . . 569 Kills 3 | . . . 3 Allies Corrupted . | . . . . Allies Melted 8 | . . . 8 Intel | -11 -10 -10 -9 ------- Run | Yrd Mat Sub Scr Active Infowar (turns) 1780 | . . 644 1136 Optics 1780 | . . 644 1136 Robot Analysis Total . | . . . . Derelict Logs Recovered 2 | . . 1 1 Drone Launches . | . . . . Drone Recoveries . | . . . . Exploration | -11 -10 -10 -9 ------------- Run | Yrd Mat Sub Scr Turns Passed 3972 | 73 86 800 3013 Spaces Moved 2285 | 48 33 428 1776 Core 13 | 13 . . . Treads 2072 | 35 33 428 1576 Legs 200 | . . . 200 Wheels . | . . . . Hover . | . . . . Flight . | . . . . Fastest Speed 50 | 50 160 160 100 Average Speed 153 | 130 160 160 152 Slowest Speed 160 | 160 160 160 160 Overloaded Moves . | . . . . Propulsion Burnouts . | . . . . Robots Hopped . | . . . . Potential Cave-ins . | . . . . Cave-ins Triggered . | . . . . Exploration Rate (%) 33 | 3 10 31 90 Regions Visited 3 Branch Regions 2 Pre-discovered Areas 3 | . . 1 2 Known Exits Taken . | . . . . Unknown Exits Taken 3 | 1 1 1 . Scrap Searched 3 | . . . 3 Spaces Dug . | . . . . Terrain Destroyed . | . . . . Melee . | . . . . Projectile . | . . . . AOE . | . . . . Terrain Rammed . | . . . . Walls Destroyed . | . . . . Machines Disabled . | . . . . Actions | -11 -10 -10 -9 --------- Run | Yrd Mat Sub Scr Total 2673 | 59 66 506 2042 Wait 257 | . 34 43 180 Move 2282 | 47 32 427 1776 Hop . | . . . . Pick Up 29 | 7 . 8 14 Fast Attach 3 | . . 1 2 Attach 16 | 4 . 5 7 Detach 2 | . . . 2 Swap 6 | . . 1 5 Drop 19 | 1 . 2 16 Fire 57 | . . 19 38 Melee . | . . . . Ram . | . . . . Kick . | . . . . Crush . | . . . . Escape Stasis . | . . . . Rewire 2 | . . . 2 Trap . | . . . . Miscellaneous . | . . . . Route ------- -11/Scrapyard -10/Materials -10/Subcaves (discovered 2 exits: *Scr x2) -9/Scraptown (discovered 1 exit: [*Fac]) History --------- Turn | Location | Event 19 | -11/Scrapyard | Discovered new exit (range 16) 74 | -11/Scrapyard | Entered Materials 75 | -10/Materials | Met a group of wandering Federalists 138 | -10/Materials | Discovered new exit (range 8) 160 | -10/Materials | Entered Subcaves 160 | -10/Subcaves | Accompanied by 3 allies 161 | -10/Subcaves | Continued accompanying wandering Federalists (5) 161 | -10/Subcaves | Approached by a straggling Scientist 303 | -10/Subcaves | Build established: Mutant 406 | -10/Subcaves | Learned location of Zion (-7) 406 | -10/Subcaves | Met a Zionite searching for "candidates" 407 | -10/Subcaves | Wandering Federalist uncovered a shortcut to Scraptown 485 | -10/Subcaves | Learned Materials garrison access intel 492 | -10/Subcaves | Scientist uncovered a shortcut to Scraptown 807 | -10/Subcaves | Shifting Twisted Machinery released Barrage Gun 960 | -10/Subcaves | Entered Scraptown 1059 | -9/Scraptown | Visited Spacefarers 1151 | -9/Scraptown | Visited SPCMW 1208 | -9/Scraptown | Visited Shadow of the Wyrm 1247 | -9/Scraptown | Visited UFD Registry 1247 | -9/Scraptown | Registered with UFD as "Ionboard" 1698 | -9/Scraptown | Scanned Subdweller tech in exchange for log data 1741 | -9/Scraptown | Discovered new exit (range 13) 2195 | -9/Scraptown | Visited Awakened 2280 | -9/Scraptown | Visited The Evicted 2459 | -9/Scraptown | Guru changed UFD alias to "Datamech" 2545 | -9/Scraptown | Visited Cave Peace 2607 | -9/Scraptown | Visited Junk Repository 2798 | -9/Scraptown | Visited Scrapoid Pod Storage 2835 | -9/Scraptown | Visited LU-1G1's Boring Crew 2883 | -9/Scraptown | Visited Abandonware Association 3180 | -9/Scraptown | Learned abandonware demo "SHUTEYE.EXE" 3180 | -9/Scraptown | Learned abandonware demo "REBOOT5.EXE" 3247 | -9/Scraptown | Met Optimus 3247 | -9/Scraptown | Accepted into 0bPrime 3377 | -9/Scraptown | Visited Chapter 10 3420 | -9/Scraptown | Civil war broke out across Scraptown 3430 | -9/Scraptown | Found Scrap Suit 3454 | -9/Scraptown | Visited Scrap Suit Storage 3466 | -9/Scraptown | Lost 3 allies 3614 | -9/Scraptown | Visited Botcube Research 3621 | -9/Scraptown | Found Botcube 3712 | -9/Scraptown | Botcube activated 3732 | -9/Scraptown | Botcube completed mutation into legged form, armed with 2 guns. 3784 | -9/Scraptown | Visited Curators Association 3787 | -9/Scraptown | Build established: Scavenger-Scrapper 3787 | -9/Scraptown | Optimus destroyed in the chaos of civil war 3834 | -9/Scraptown | Core integrity fell below 50% 3973 | -9/Scraptown | Self-destructed Last Messages --------------- 03893_ Acquired Ovr. Treads. 03899_ Dropped Ovr. Treads. 03900_ Scrap Suit cannibalized Lgt. Deuterium Engine to repair Lgt. Deuterium Engine. 03905_ 0B-Y90(E) cannibalizes Ovr. Treads to repair Ovr. Treads. 03906_ Acquired Lgt. Nuclear Core. 03911_ Acquired 36 matter. 03939_ XO-O4W(p) destroyed. 03942_ 59-XAO(j) heat spikes uncontrollably. 03942_ Critical hit (Burn: +50). 03945_ Overheating: Ovr. Treads damaged (-70). 03945_ Critical hit (Burn: +50). 03946_ 59-XAO(j) destroyed. 03948_ Ovr. Treads broken. 03948_ Overheating: Short circuit. 03950_ Overheating: System interference. 03950_ Barrage Gun temporarily disabled. 03950_ Ovr. Pulse Rifle temporarily disabled. 03950_ Barrage Gun temporarily disabled. Map ----- +----------------------------------------------------+ | # /*! #=!#=%=!% #????????????????? | | ### ###########=#####!%##!#######????????????????? | | ### ###########!####=%%=#*##?????????????????????? | | " """""" """!%= [%"/[% %"#?????????????????????? | | = !%!%*=!=*%=! "#????"????????????????? | | ! [= = !!%!![!%!!"#???"""""""???????????? | | [ !%= * %! % [#?? " """???????????? | | !* =!* =!!!! [%=## """???????????? | | [ ! *%! ][!%[% """???????????? | | "" """" " !=[!!%=="## """""""????????????? | | """""""""""""""""""""!%=[ =#??""!""??????????????? | | # ################"*![=%! ##??"""???????????????? | | ##????????#" ![%=!%[#???###??????????????? | | X"#????????#"!!==[!%##???""?"?????????????? | | " "" ##????????#"[=! =!!#??? ""#????????????? | | "" X"#??????###!% %==!"#??= #????????????? | | " ######### #" %*![=%##%!!*! #????????????? | | "" ! !!%!%! !%!%!=[%!!*==% " #??????????? | | "" [ ! %%= [*=&!##[%[%*""#????????????? | | " ######### #"%=!!=% ##?"= """#????????????? | | "" ""#??????###"= %%! ;#??"""""?????????????? | | " "" ##????????#"* [[! ##???#??#?????????????? | | X"#????????#!!=%!!=*#?????????????????????? | | ##????????#= [*!%="#???#?????????????????? | | # ################=%=%!!!%#?? ""????????????????? | | """""""""""""""""""===!! @[## """???????????????? | | """""""""""" " *!%%! =!%%!* " "??????????????? | | * !!!% !## ""??????????????? | | ! ![[% =!= #?? "#?????????????? | | = %!![=![ "#??? X"#?????????????? | | %=!=%!%! == ##??? ?#?????????????? | | =![ /!=*=%! #????""??????????????? | | """"" """"""""" ![!* %[!![##??????#?????????????? | | ##### ##########[%==####%!!#?????????????????????? | | # #??# !=[[ #[=[#?????????????????????? | | # # # #??# =!= #%!!#?????????????????????? | | ??# # #??# "" #[=![?????????????????????? | | ??# # #??# ###" #==%#?????????????????????? | | ??####### #??# "#X#" #%![#?????????????????????? | | ???????? #??# "# #" #*![############??????????? | | ????????# #??# #j%! #??????????? | | ????????# #??# " " " # ##??????????? | | ????????# #??#"""""""""# #??????????? | | ????????# #??########### #??????????? | | ?????????#?????????????# #??????????? | | ???????????????????????# ############??????????? | | ###?#################### #####?????????????????? | | """##"""##"""##"""##"|"# """"#?????????????????? | | |""##" "##"""##""|##" # "" "#?????????????????? | | "#?????????????????? | +----------------------------------------------------+ Best States ------------- Heat Dissipation 39 Coolant Potential 50 Energy Generation 14 Energy Capacity 250 Matter Stores 300 Matter Capacity 300 Sight Range 21 Terrain Scan Density 10 Resistance: KI 20 Resistance: TH 20 Resistance: EX 20 Resistance: EM 20 Resistance: I 20 Resistance: S 20 Resistance: P 20 Evasion (%) 55 Recoil Reduction 2 Offensive Hacking 10 Item Schematics ----------------- None Robot Schematics ------------------ None Fabricated ------------ Nothing Repaired ---------- Nothing Alien Tech Used ----------------- None Achievements -------------- None Challenges ------------ None Game ------ Seed DeuteriumReactionWarhead Manual? 0 Play Time 00:47:39 Cumulative 5.7 hours Start 2025.06.14 @ 21:34:59 End 2025.06.15 @ 11:58:07 Sessions 1 Manual Loads 0 Difficulty Adventurer Special Mode None Game No. 7 Rogue 0 Adventurer 7 Explorer 0 Win Type - Total 0 Types 0/0/0/0/0/0/0/0/0/0 Lore% 12 Gallery% 11 Achievement% 12 Wizard Run 0 Options --------- Layout 2 ASCII 0 Keyboard 0 Movement Mouse Keybinds 0 Fullscreen 2 Font 32/SmallcapsGlow Map View 25x22 Zoom Use 67% Tactical HUD 1 Map Filters NONE Filters NONE Steam 1 RUN: b1424b6d-ab5a-4d01-bea5-56cccb4812ae